{"text_format":"1","workbook":"xlsx","n_sheets":2,"sheets":["Tabelle1","internal"],"not_rendered":{"charts":0,"images":0,"macros":0,"external_links":0,"defined_names":0,"comments":1,"pivot_tables":0},"unopened":[],"bounds":{"document_bytes":16777216,"sheet_cells":100000,"rows_first":2000,"rows_last":500,"rows_between":2000,"halvings":0,"cell_chars":16384,"cell_head_chars":4096},"cells_cut":0,"cells_raw":0,"read":"whole","date_system":"1900"}

{"sheet":"Tabelle1","index":0,"n_rows":51,"n_cols":23,"rows_kept":51,"cut":false,"hidden":false,"merged":[]}
["Zeile","Name, Vorname","Bezeichnung der wirtschaftlichen Einheit","Art der wirtschaftlichen Einheit","Bundesland","Straße/Lagebezeichnung","Hausnummer","Hausnummerzusatz","Zusatzangaben","Postleitzahl","Ort","Eigentumsverhältnisse","Erstreckt sich das Grundstück über mehrere hebeberechtigte Gemeinden?","Umfasst die wirtschaftliche Einheit mehrere Flurstücke?","Gemarkung","Grundbuchblatt","Flur","Flurstück: Zähler","Flurstück: Nenner","Grundstücks- fläche in m²","Miteigentumsanteil laut Grundbuch: Zähler","Miteigentumsanteil laut Grundbuch: Nenner","Hinweis für den Sachbearbeiter"]
[1]
[2]
[3]
[4]
[5]
[{"$f":"+A6+1","v":6}]
[{"$f":"+A7+1","v":7}]
[8]
[9]
[10]
[11]
[12]
[13]
[14]
[15]
[16]
[17]
[18]
[19]
[20]
[21]
[22]
[23]
[24]
[25]
[26]
[27]
[28]
[29]
[30]
[31]
[32]
[33]
[34]
[35]
[36]
[37]
[38]
[39]
[40]
[41]
[42]
[43]
[44]
[45]
[46]
[47]
[48]
[49]
[50]

{"sheet":"internal","index":1,"n_rows":14,"n_cols":24,"rows_kept":14,"cut":false,"hidden":true,"merged":[]}
["Name Batchupload","Zentrale Mandantennummer","Mandantentyp","Mandatsbezeichnung","Bezeichnung Grundstück","Art der wirtschaftlichen Einheit","Bundesland","Straße/Lagebezeichnung","Hausnummer","Hausnummerzusatz","Zusatzangaben","Postleitzahl","Ort","Eigentumsverhältnisse","Erstreckt sich das Grundstück über mehrere hebeberechtigte Gemeinden?","Umfasst die wirtschaftliche Einheit mehrere Flurstücke?","Gemarkung","Grundbuchblatt","Flur","Flurstück: Zähler","Flurstück: Nenner","Grundstücks- fläche in m²","Miteigentumsanteil laut Grundbuch: Zähler","Miteigentumsanteil laut Grundbuch: Nenner"]
[null,null,null,null,null,null,null,null,null,null,null,null,null,"Alleineigentum einer natürlichen Person"]
[null,null,null,null,null,null,null,null,null,null,null,null,null,"Alleineigentum einer Körperschaft des öffentlichen Rechts"]
["Drop Down:",null,"Natürliche Person",null,null,"unbebautes Grundstück (wirtschaftliche Einheit des Grundvermögens)","Berlin",null,null,null,null,null,null,"Alleineigentum einer unternehmerisch mtätigen juristischen Person","Ja","Ja"]
[null,null,"Unternehmen",null,null,"bebautes Grundstück (wirtschaftliche Einheit des Grundvermögens)","Brandenburg",null,null,null,null,null,null,"Ehegatten/Lebenspartner","Nein","Nein"]
[null,null,"Einzelunternehmen",null,null,"Betrieb der Land- und Forstwirtschaft","Bremen",null,null,null,null,null,null,"Erbengemeinschaft","Später erfassen","Später erfassen"]
[null,null,null,null,null,null,"Mecklenburg-Vorpommern",null,null,null,null,null,null,"Bruchteilsgemeinschaft"]
[null,null,null,null,null,null,"Nordrhein-Westfalen",null,null,null,null,null,null,"Grundstücksgemeinschaft ausschließlich von natürlichen Personen"]
[null,null,null,null,null,null,"Rheinland-Pfalz",null,null,null,null,null,null,"Grundstücksgemeinschaft ausschließlich von juristischen Personen"]
[null,null,null,null,null,null,"Saarland",null,null,null,null,null,null,"andere Grundstücksgemeinschaft"]
[null,null,null,null,null,null,"Sachsen"]
[null,null,null,null,null,null,"Sachsen-Anhalt"]
[null,null,null,null,null,null,"Schleswig-Holstein"]
[null,null,null,null,null,null,"Thüringen"]